Workbook

Sheet 29 декабря
I1: Утверждаю:
I2: Директор школы | L2: Н.П.Семенов
E4: МЕНЮ ДНЯ | K4: ='[1]21'!$B$1 -> 29 | L4: декабрь | M4: 2025 год.
D6: МБОУ"ПАВЛОВСКАЯ СОШ"
A7: 20
A8: РАЗДЕЛ | B8: № РЕЦ. | C8: БЛЮДО | H8: ВЫХОД | I8: ЦЕНА | J8: КАЛОРИЙ | K8: БЕЛКИ | L8: ЖИРЫ | M8: УГЛЕВО
H9: г | J9: НОСТЬ | M9: ДЫ
A10: ОВЗ | C10: 7-11 лет
B11: 89№208 | C11: ='[2]21'!$B$7 -> КАША МАННАЯ МОЛОЧНАЯ | H11: 200 | I11: ='[2]21'!$BL$7 -> 15.23 | J11: 246.67 | K11: 7.44 | L11: 8.44 | M11: 36.22
B12: 201№304 | C12: ='[2]21'!$B$8 -> БАТОН | H12: 30 | I12: ='[2]21'!$BL$8 -> 2.74 | J12: 94 | K12: 2.9 | L12: 2.8 | M12: 18.5
B13: №8 | C13: ='[2]21'!$B$9 -> ЧАЙ | H13: 200 | I13: ='[2]21'!$BL$9 -> 1.14 | J13: 85.7 | K13: 2.4 | L13: 0.8 | M13: 16.7
C14: ИТОГО | H14: =SUM(H11:H13) -> 430 | I14: =SUM(I11:I13) -> 19.11
C15: от 12 и старше лет | J15: =SUM(J11:J14) -> 426 | K15: =SUM(K12:K14) -> 5 | L15: =SUM(L11:L14) -> 12 | M15: =SUM(M11:M14) -> 71.42
B16: 89№208 | C16: =C11 -> КАША МАННАЯ МОЛОЧНАЯ | H16: 200 | I16: ='[2]21'!$BL$22 -> 19.71 | J16: 246.67 | K16: 7.44 | L16: 8.44 | M16: 36.22
B17: 201№304 | C17: =C12 -> БАТОН | H17: 30 | I17: ='[2]21'!$BL$23 -> 3.51 | J17: 94 | K17: 2.9 | L17: 2.8 | M17: 18.5
B18: №8 | C18: =C13 -> ЧАЙ | H18: 200 | I18: ='[2]21'!$BL$24 -> 1.28 | J18: 85.7 | K18: 2.4 | L18: 0.8 | M18: 16.7
C19: ИТОГО | H19: =SUM(H16:H18) -> 430 | I19: =SUM(I16:I18) -> 24.51 | J19: =SUM(J17:J18) -> 179.7 | K19: =SUM(K17:K18) -> 5.3 | L19: =SUM(L17:L18) -> 3.6 | M19: =SUM(M17:M18) -> 35.20
A20: 5-11 класс
C21: от 12 и старше лет
B22: №24.01 | C22: ='[1]21'!$B$21 -> САЛАТ ИЗ БЕЛОКАЧАННОЙ КАПУСТЫ | H22: 100 | I22: ='[1]21'!$BK$21 -> 6.35 | K22: 2 | L22: 9 | M22: 8.6
B23: 206 | C23: ='[1]21'!$B$22 -> СУП КАРТОФЕЛЬНЫЙ С ГОРОХОМ | H23: 250 | I23: ='[1]21'!$BK$22 -> 5.47 | J23: =E23 -> 0 | K23: =F23 -> 0 | L23: =G23 -> 0 | M23: =H23 -> 250
B24: №16 | C24: ='[1]21'!$B$23 -> ЖАРКОЕ ПО ДОМАШНЕМУ | H24: 200 | I24: ='[1]21'!$BK$23 -> 43.76 | J24: 88.12 | K24: 14.1 | L24: 3.7 | M24: 2.66
B25: №679 | C25: ='[1]21'!$B$24 -> 0 | I25: ='[1]21'!$BK$24 -> 0.00 | J25: 276 | K25: 8.95 | L25: 6.73 | M25: 43
B26: 207№310 | C26: ='[1]21'!$B$25 -> КОМПОТ ИЗ СУХОФРУКТОВ | H26: 200 | I26: ='[1]21'!$BK$25 -> 4.76 | J26: 123 | K26: 0.5 | L26: 0.1 | M26: 30.9
B27: №7 | C27: ='[1]10'!$B$26 -> ХЛЕБ | H27: 50 | I27: ='[1]21'!$BK$26 -> 3.25 | J27: 108.6 | K27: 3.96 | L27: 0.72 | M27: 1.38
C28: ='[1]10'!$B$27 -> 0 | I28: ='[1]10'!$BK$27 -> 0.00
C29: ='[1]6'!$B$28 -> 0 | I29: ='[1]3'!$BK$28 -> 0.00
C30: ИТОГО | H30: =SUM(H22:H29) -> 800 | I30: =SUM(I22:I29) -> 63.58 | J30: =SUM(J22:J29) -> 595.72 | K30: =SUM(K22:K29) -> 29.51 | L30: =SUM(L22:L29) -> 20.25 | M30: =SUM(M22:M29) -> 336.54
C31: Составил Агеева Г.Н. | K31: Повар Фролова Л.Н.
